fUSD/lending_fUSD_20250507
["ID","MTS","AMOUNT","RATE_DAILY","PERIOD"]
[360199442,1746616948109,-450.0,0.0001958,2]
[360199443,1746616948138,-449.99940125,0.0001958,2]
[360199444,1746616948170,-450.0,0.0001958,2]
[360199445,1746616948198,-500.0,0.0001958,2]
[360199446,1746616948227,-450.0,0.0001958,2]
[360199447,1746616948256,-450.0,0.0001958,2]
[360199448,1746616948283,-450.0,0.0001958,2]
[360199449,1746616948311,-450.0,0.0001958,2]
[360199450,1746616948339,-450.0,0.0001958,2]
[360199451,1746616948367,-450.0,0.0001958,2]
[360199452,1746616948395,-450.0,0.0001958,2]
[360199453,1746616948422,-450.0,0.0001958,2]
[360199454,1746616948452,-450.0,0.0001958,2]
[360199455,1746616948479,-450.0,0.0001958,2]
[360199456,1746616948506,-450.0,0.0001958,2]
[360199457,1746616948534,-230.463928,0.0001958,2]
[360199458,1746616948560,-29999.99,0.0001958,2]
[360199459,1746616948587,-6068.38,0.0001958,2]
[360199460,1746616948614,-450.0,0.0001958,2]
[360199461,1746616948641,-450.0,0.0001958,2]
[360199462,1746616948668,-450.0,0.0001958,2]
[360199463,1746616948696,-450.0,0.0001958,2]
[360199464,1746616948722,-162.96537,0.0001958,2]
[360199465,1746616948749,-450.0,0.0001958,2]
[360199466,1746616948775,-286.23528357,0.0001958,2]
[360199467,1746616948803,-6432.215253,0.0001958,2]
[360199468,1746616948831,-450.0,0.0001958,2]
[360199469,1746616948858,-450.0,0.0001958,2]
[360199470,1746616948885,-450.0,0.0001958,2]
[360199471,1746616948913,-450.0,0.00019581,2]
[360199472,1746616948940,-450.0,0.00019581,2]
[360199473,1746616948967,-450.0,0.00019581,2]
[360199474,1746616948997,-450.0,0.00019581,2]
[360199475,1746616949024,-450.0,0.00019581,2]
[360199476,1746616949053,-450.0,0.00019581,2]
[360199477,1746616949081,-450.0,0.00019581,2]
[360199478,1746616949107,-450.0,0.00019581,2]
[360199479,1746616949136,-3766.67,0.00019581,2]
[360199480,1746616949163,-450.0,0.00019581,2]
[360199481,1746616949189,-5515.64,0.00019581,2]
[360199482,1746616949217,-2756.6,0.00019581,2]
[360199483,1746616949243,-450.0,0.00019582,2]
[360199484,1746616949275,-450.0,0.00019582,2]
[360199485,1746616949497,-450.0,0.00019582,2]
[360199486,1746616949524,-466.76971206,0.00019582,2]
[360199487,1746616949551,-450.0,0.00019582,2]
[360199488,1746616949577,-450.0,0.00019582,2]
[360199489,1746616949605,-450.0,0.00019582,2]
[360199490,1746616949637,-500.0,0.00019582,2]
[360199491,1746616949664,-450.0,0.00019582,2]
[360199492,1746616949691,-450.0,0.00019582,2]
[360199493,1746616949717,-450.0,0.00019582,2]
[360199494,1746616949744,-450.0,0.00019582,2]
[360199495,1746616949771,-450.0,0.00019582,2]
[360199496,1746616949799,-450.0,0.00019582,2]
[360199497,1746616949828,-450.0,0.00019582,2]
[360199498,1746616949857,-450.0,0.00019582,2]
[360199499,1746616949884,-450.0,0.00019582,2]
[360199500,1746616949913,-450.0,0.00019582,2]
[360199501,1746616949941,-450.0,0.00019582,2]
[360199502,1746616949969,-450.0,0.00019582,2]
[360199503,1746616949998,-450.0,0.00019582,2]
[360199504,1746616950028,-450.0,0.00019582,2]
[360199505,1746616950056,-450.0,0.00019582,2]
[360199506,1746616950087,-450.0,0.00019582,2]
[360199507,1746616950114,-561.53019206,0.00019582,2]
[360199508,1746616950142,-450.0,0.00019582,2]
[360199509,1746616950170,-450.0,0.00019582,2]
[360199510,1746616950199,-795.23,0.00019582,2]
[360199511,1746616950226,-450.0,0.00019583,2]
[360199512,1746616950254,-450.0,0.00019583,2]
[360199513,1746616950281,-250.1,0.00019585,2]
[360199514,1746616950308,-450.0,0.00019585,2]
[360199515,1746616950335,-450.0,0.00019585,2]
[360199516,1746616950362,-497.95,0.00019585,2]
[360199517,1746616950389,-500.0,0.00019585,2]
[360199518,1746616950416,-489.56,0.00019585,2]
[360199519,1746616950444,-450.0,0.00019585,2]
[360199520,1746616950471,-450.0,0.00019585,2]
[360199521,1746616950500,-450.0,0.00019585,2]
[360199522,1746616950528,-450.0,0.00019585,2]
[360199523,1746616950557,-450.0,0.00019585,2]
[360199524,1746616950586,-450.0,0.00019585,2]
[360199525,1746616950614,-450.0,0.00019585,2]
[360199526,1746616950642,-450.0,0.00019585,2]
[360199527,1746616950670,-450.0,0.00019585,2]
[360199528,1746616950697,-450.0,0.00019585,2]
[360199529,1746616950723,-450.0,0.00019585,2]
[360199530,1746616950750,-450.0,0.00019585,2]
[360199531,1746616950777,-450.0,0.00019586,2]
[360199532,1746616951009,-151.0,0.00019586,2]
[360199533,1746616951025,-151.0,0.00019586,2]
[360199534,1746616951041,-148.0,0.00019586,2]
[360199535,1746616951052,-7.0,0.00019586,2]
[360199536,1746616951067,-151.0,0.00019586,2]
[360199537,1746616951084,-207.4,0.00019586,2]
[360199538,1746616951099,-84.6,0.00019586,2]
[360199539,1746616951110,-450.0,0.00019586,2]
[360199540,1746616951120,-134.05185757,0.00019586,2]
[360199541,1746616951131,-300.0,0.00019586,2]
[360199542,1746616951143,-15.94814243,0.00019586,2]
[360199543,1746616951154,-427.94,0.00019586,2]
[360199544,1746616951164,-450.0,0.00019586,2]
[360199545,1746616951175,-306.11185757,0.00019586,2]
[360199546,1746616951186,-143.88814243,0.00019586,2]
[360199547,1746616951196,-156.11185757,0.00019586,2]
[360199548,1746616951218,-450.0,0.00019513,2]
[360199549,1746616951229,-293.88814243,0.00019586,2]
[360199550,1746616951239,-106.11185757,0.00019586,2]
[360199551,1746616951250,-200.0,0.00019586,2]
[360199552,1746616951261,-143.88814243,0.00019586,2]
[360199553,1746616951271,-256.11185757,0.00019586,2]
[360199554,1746616951291,-193.88814243,0.00019586,2]
[360199555,1746616951300,-450.0,0.00019586,2]
[360199556,1746616951310,-270.25445449,0.00019586,2]
[360199557,1746616951330,-250.40746094,0.00019586,2]
[360199558,1746616951339,-450.0,0.00019586,2]
[360199559,1746616951348,-213.73513598,0.00019586,2]
[360199560,1746616951360,-236.26486402,0.00019586,2]
[360199561,1746616951370,-450.0,0.00019586,2]
[360199562,1746616951380,-227.8777329,0.00019586,2]
[360199563,1746616951405,-450.0,0.00019513,2]
[360199564,1746616951414,-222.1222671,0.00019586,2]
[360199565,1746616951424,-242.02032982,0.00019586,2]
[360199566,1746616951448,-450.0,0.00019585,2]
[360199567,1746616951457,-207.97967018,0.00019586,2]
[360199568,1746616951466,-256.16292674,0.00019586,2]
[360199569,1746616951479,-193.83707326,0.00019586,2]
[360199570,1746616951489,-450.0,0.00019586,2]
[360199571,1746616951499,-270.30552366,0.00019586,2]
[360199572,1746616951511,-179.69447634,0.00019586,2]
[360199573,1746616951522,-450.0,0.00019586,2]
[360199574,1746616951532,-284.44812058,0.00019586,2]
[360199575,1746616951543,-165.55187942,0.00019586,2]
[360199576,1746616951553,-450.0,0.00019586,2]
[360199577,1746616951563,-165.25,0.00019586,2]
[360199578,1746616951573,-133.3407175,0.00019586,2]
[360199579,1746616951585,-316.6592825,0.00019586,2]
[360199580,1746616951595,-450.0,0.00019586,2]
[360199581,1746616951606,-147.48331442,0.00019587,2]
[360199582,1746616951618,-302.51668558,0.00019587,2]
[360199583,1746616951628,-450.0,0.00019587,2]
[360199584,1746616951637,-161.62591134,0.00019587,2]
[360199585,1746616951654,-450.0,0.00019586,2]
[360199586,1746616951663,-288.37408866,0.00019587,2]
[360199587,1746616951672,-175.76850826,0.00019587,2]
[360199588,1746616951690,-274.23149174,0.00019587,2]
[360199589,1746616951700,-450.0,0.00019587,2]
[360199590,1746616951709,-189.91110518,0.00019591,2]
[360199591,1746616951722,-260.08889482,0.00019591,2]
[360199592,1746616951732,-379.082757,0.00019591,2]
[360199593,1746616951741,-274.9709451,0.00019596,2]
[360199594,1746616951757,-175.0290549,0.00019596,2]
[360199595,1746616951767,-450.0,0.00019596,2]
[360199596,1746616951776,-289.11354202,0.00019596,2]
[360199597,1746616951788,-160.88645798,0.00019596,2]
[360199598,1746616951798,-450.0,0.00019596,2]
[360199599,1746616951807,-303.25613894,0.00019596,2]
[360199600,1746616951824,-196.74386106,0.00019596,2]
[360199601,1746616951834,-450.0,0.00019596,2]
[360199602,1746616951844,-267.39873586,0.00019596,2]
[360199603,1746616951861,-182.60126414,0.00019596,2]
[360199604,1746616951870,-450.0,0.00019596,2]
[360199605,1746616951880,-281.54133278,0.00019596,2]
[360199606,1746616951896,-238.67866722,0.00019596,2]
[360199607,1746616951905,-450.0,0.00019596,2]
[360199608,1746616951915,-225.4639297,0.00019596,2]
[360199609,1746616951928,-224.5360703,0.00019596,2]
[360199610,1746616951939,-450.0,0.00019596,2]
[360199611,1746616951948,-239.60652662,0.00019596,2]
[360199612,1746616951991,-210.39347338,0.00019596,2]
[360199613,1746616952003,-450.0,0.00019596,2]
[360199614,1746616952013,-253.74912354,0.00019596,2]
[360199615,1746616952041,-196.25087646,0.00019596,2]
[360199616,1746616952052,-450.0,0.00019596,2]
[360199617,1746616952061,-267.89172046,0.00019596,2]
[360199618,1746616952072,-182.10827954,0.00019596,2]
[360199619,1746616952082,-450.0,0.00019596,2]
[360199620,1746616952092,-282.03431738,0.00019596,2]
[360199621,1746616952109,-207.96568262,0.00019596,2]
[360199622,1746616952119,-516.15,0.00019596,2]
[360199623,1746616952129,-190.0269143,0.00019596,2]
[360199624,1746616952141,-259.9730857,0.00019596,2]
[360199625,1746616952150,-450.0,0.00019596,2]
[360199626,1746616952159,-204.16951122,0.00019596,2]
[360199627,1746616952216,-96.72238015,0.00019596,2]
[360199628,1746616952225,-450.0,0.00019596,2]
[360199629,1746616952235,-367.42021677,0.00019596,2]
[360199630,1746616952305,-82.57978323,0.00019596,2]
[360199631,1746616952315,-450.0,0.00019596,2]
[360199632,1746616952325,-381.56281369,0.00019596,2]
[360199633,1746616952337,-118.43718631,0.00019596,2]
[360199634,1746616952346,-450.0,0.00019596,2]
[360199635,1746616952356,-345.70541061,0.00019596,2]
[360199636,1746616952372,-104.29458939,0.00019596,2]
[360199637,1746616952382,-453.76698098,0.00019596,2]
[360199638,1746616952392,-356.08102655,0.00019596,2]
[360199639,1746616952404,-93.91897345,0.00019596,2]
[360199640,1746616952414,-450.0,0.00019596,2]
[360199641,1746616952423,-370.22362347,0.00019596,2]
[360199642,1746616952439,-79.77637653,0.00019596,2]
[360199643,1746616952449,-450.0,0.00019596,2]
[360199644,1746616952458,-384.36622039,0.00019596,2]
[360199645,1746616952474,-65.63377961,0.00019596,2]
[360199646,1746616952484,-450.0,0.00019596,2]
[360199647,1746616952493,-398.50881731,0.00019596,2]
[360199648,1746616952505,-51.49118269,0.00019596,2]
[360199649,1746616952514,-450.0,0.00019596,2]
[360199650,1746616952524,-412.65141423,0.00019596,2]
[360199651,1746616952535,-37.34858577,0.00019596,2]
[360199652,1746616952545,-450.0,0.00019596,2]
[360199653,1746616952554,-426.79401115,0.00019596,2]
[360199654,1746616952570,-23.20598885,0.00019596,2]
[360199655,1746616952580,-450.0,0.00019596,2]
[360199656,1746616952589,-440.93660807,0.00019596,2]
[360199657,1746616952601,-9.06339193,0.00019596,2]
[360199658,1746616952611,-450.0,0.00019596,2]
[360199659,1746616952620,-450.0,0.00019597,2]
[360199660,1746616952630,-5.07920499,0.00019597,2]
[360199661,1746616952641,-444.92079501,0.00019597,2]
[360199662,1746616952651,-450.0,0.00019597,2]
[360199663,1746616952660,-19.22180191,0.00019597,2]
[360199664,1746616952671,-430.77819809,0.00019597,2]
[360199665,1746616952681,-450.0,0.00019597,2]
[360199666,1746616952690,-33.36439883,0.00019597,2]
[360199667,1746616952706,-416.63560117,0.00019597,2]
[360199668,1746616952715,-450.0,0.00019597,2]
[360199669,1746616952725,-47.50699575,0.00019597,2]
[360199670,1746616952736,-914.14259692,0.00019597,2]
[360199671,1746616952747,-914.14259692,0.00019597,2]
[360199672,1746616952766,-914.14259692,0.00019597,2]
[360199673,1746616952782,-914.14259692,0.00019597,2]
[360199674,1746616952793,-62.59261657,0.00019597,2]
[360199675,1746616952803,-450.0,0.00019597,2]
[360199676,1746616952812,-401.54998035,0.00019597,2]
[360199677,1746616952827,-914.14259692,0.00019597,2]
[360199678,1746616952841,-914.14259692,0.00019597,2]
[360199679,1746616952859,-914.14259692,0.00019597,2]
[360199680,1746616952879,-450.0,0.00019596,2]
[360199681,1746616952888,-500.44128813,0.00019597,2]
[360199682,1746616952899,-950.44128813,0.00019597,2]
[360199683,1746616952913,-920.77965263,0.00019597,2]
[360199684,1746616952923,-29.6616355,0.00019597,2]
[360199685,1746616952938,-950.44128813,0.00019597,2]
[360199686,1746616952949,-950.44128813,0.00019597,2]
[360199687,1746616952964,-826.05578824,0.00019597,2]
[360199688,1746616953168,-124.38549989,0.00019653,2]
[360199689,1746616953184,-325.61450011,0.00019653,2]
[360199690,1746616953194,-450.0,0.00019653,2]
[360199691,1746616953204,-174.82678802,0.00019653,2]
[360199692,1746616953224,-275.17321198,0.00019653,2]
[360199693,1746616953234,-450.0,0.00019653,2]
[360199694,1746616953243,-225.26807615,0.00019653,2]
[360199695,1746616953258,-277.41321876,0.00019653,2]
[360199696,1746616953267,-500.78,0.00019653,2]
[360199697,1746616953277,-172.24806937,0.00019653,2]
[360199698,1746616953293,-277.75193063,0.00019653,2]
[360199699,1746616953303,-672.6893575,0.00019653,2]
[360199700,1746616953314,-950.44128813,0.00019653,2]
[360199701,1746616953325,-950.44128813,0.00019653,2]
[360199702,1746616953341,-950.44128813,0.00019653,2]
[360199703,1746616953352,-242.65677811,0.00019653,2]
[360199704,1746616953362,-450.0,0.00019653,2]
[360199705,1746616953372,-257.78451002,0.00019653,2]
[360199706,1746616953388,-950.44128813,0.00019653,2]
[360199707,1746616953404,-950.44128813,0.00019653,2]
[360199708,1746616953416,-950.44128813,0.00019653,2]
[360199709,1746616953427,-950.44128813,0.00019653,2]
[360199710,1746616953451,-950.44128813,0.00019653,2]
[360199711,1746616953463,-505.64904933,0.00019653,2]
[360199712,1746616953472,-444.7922388,0.00019653,2]
[360199713,1746616953498,-450.0,0.00019513,2]
[360199714,1746616953510,-500.44128813,0.00019653,2]
[360199715,1746616953523,-950.44128813,0.00019653,2]
[360199716,1746616953537,-860.92518494,0.00019653,2]
[360199717,1746616953548,-89.51610319,0.00019653,2]
[360199718,1746616953574,-450.0,0.00019585,2]
[360199719,1746616953585,-466.62389681,0.00019653,2]
[360199720,1746616953595,-33.81739132,0.00019653,2]
[360199721,1746616953607,-416.18260868,0.00019653,2]
[360199722,1746616953617,-450.0,0.00019653,2]
[360199723,1746616953628,-84.25867945,0.00019653,2]
[360199724,1746616953652,-365.74132055,0.00019653,2]
[360199725,1746616953663,-450.0,0.00019653,2]
[360199726,1746616953673,-134.69996758,0.00019653,2]
[360199727,1746616953690,-340.82003203,0.00019653,2]
[360199728,1746616953700,-450.0,0.00019653,2]
[360199729,1746616953710,-159.6212561,0.00019653,2]
[360199730,1746616953723,-290.3787439,0.00019653,2]
[360199731,1746616953734,-450.0,0.00019653,2]
[360199732,1746616953744,-210.06254423,0.00019653,2]
[360199733,1746616953757,-239.93745577,0.00019653,2]
[360199734,1746616953768,-450.0,0.00019653,2]
[360199735,1746616953778,-260.50383236,0.00019653,2]
[360199736,1746616953791,-189.49616764,0.00019653,2]
[360199737,1746616953801,-450.0,0.00019653,2]
[360199738,1746616953811,-310.94512049,0.00019653,2]
[360199739,1746616953824,-139.05487951,0.00019653,2]
[360199740,1746616953834,-450.0,0.00019653,2]
[360199741,1746616953843,-361.38640862,0.00019653,2]
[360199742,1746616953856,-88.61359138,0.00019653,2]
[360199743,1746616953866,-267.57,0.00019653,2]
[360199744,1746616953877,-450.0,0.00019653,2]
[360199745,1746616953888,-144.25769675,0.00019653,2]
[360199746,1746616953900,-109.31230325,0.00019653,2]
[360199747,1746616953911,-450.0,0.00019663,2]
[360199748,1746616953922,-391.12898488,0.00019663,2]
[360199749,1746616953935,-139.21101512,0.00019663,2]
[360199750,1746616953945,-450.0,0.00019663,2]
[360199751,1746616953955,-361.23027299,0.00019663,2]
[360199752,1746616953973,-128.88972701,0.00019663,2]
[360199753,1746616953984,-450.0,0.00019663,2]
[360199754,1746616953999,-262.16,0.00019663,2]
[360199755,1746616954010,-109.3915611,0.00019663,2]
[360199756,1746616954022,-340.6084389,0.00019663,2]
[360199757,1746616954034,-450.0,0.00019663,2]
[360199758,1746616954044,-159.83284921,0.00019663,2]
[360199759,1746616954061,-290.16715079,0.00019663,2]
[360199760,1746616954072,-450.0,0.00019663,2]
[360199761,1746616954083,-210.27413732,0.00019663,2]
[360199762,1746616954111,-239.72586268,0.00019663,2]
[360199763,1746616954123,-450.0,0.00019663,2]
[360199764,1746616954133,-260.71542543,0.00019663,2]
[360199765,1746616954160,-261.56509674,0.00019596,2]
[360199766,1746616954171,-189.28457457,0.00019663,2]
[360199767,1746616954182,-499.57,0.00019663,2]
[360199768,1746616954192,-0.0216168,0.00019663,2]
[360199769,1746616954206,-449.9783832,0.00019663,2]
[360199770,1746616954216,-450.0,0.00019663,2]
[360199771,1746616954227,-50.46290491,0.00019663,2]
[360199772,1746616954240,-399.53709509,0.00019663,2]
[360199773,1746616954250,-500.0,0.00019673,2]
[360199774,1746616954260,-50.90419302,0.00019673,2]
[360199775,1746616954273,-464.20204373,0.00019673,2]
[360199776,1746616954284,-486.23924438,0.00019673,2]
[360199777,1746616954296,-13.76075562,0.00019673,2]
[360199778,1746616954306,-598.25045734,0.00019673,2]
[360199779,1746616954316,-338.43007515,0.00019673,2]
[360199780,1746616954332,-162.02412613,0.00019673,2]
[360199781,1746616954341,-500.0,0.00019673,2]
[360199782,1746616954351,-288.41716198,0.00019673,2]
[360199783,1746616954379,-211.58283802,0.00019673,2]
[360199784,1746616954389,-38.41716198,0.00019673,2]
[360199785,1746616954403,-200.0,0.00019673,2]
[360199786,1746616954420,-261.58283802,0.00019673,2]
[360199787,1746616954430,-200.9891559,0.00019673,2]
[360199788,1746616954450,-299.0108441,0.00019673,2]
[360199789,1746616954461,-150.9891559,0.00019673,2]
[360199790,1746616954477,-349.0108441,0.00019673,2]
[360199791,1746616954487,-100.9891559,0.00019673,2]
[360199792,1746616954500,-399.0108441,0.00019673,2]
[360199793,1746616954510,-200.34293604,0.00019673,2]
[360199794,1746616954522,-299.65706396,0.00019673,2]
[360199795,1746616954533,-150.34293604,0.00019673,2]
[360199796,1746616954550,-349.65706396,0.00019673,2]
[360199797,1746616954560,-100.34293604,0.00019673,2]
[360199798,1746616954573,-399.65706396,0.00019673,2]
[360199799,1746616954583,-50.34293604,0.00019673,2]
[360199800,1746616954595,-449.65706396,0.00019673,2]
[360199801,1746616954606,-3.06293604,0.00019673,2]
[360199802,1746616954618,-154.9719065,0.00019673,2]
[360199803,1746616954631,-341.96515746,0.00019673,2]
[360199804,1746616954641,-108.03484254,0.00019673,2]
[360199805,1746616954653,-450.0,0.00019673,2]
[360199806,1746616954665,-11.88052992,0.00019673,2]
[360199807,1746616954675,-438.11947008,0.00019673,2]
[360199808,1746616954688,-61.88052992,0.00019673,2]
[360199809,1746616954698,-388.11947008,0.00019673,2]
[360199810,1746616954710,-61.88052992,0.00019673,2]
[360199811,1746616954720,-300.65,0.00019673,2]
[360199812,1746616954731,-87.46947008,0.00019673,2]
[360199813,1746616954753,-450.0,0.00019673,2]
[360199814,1746616954773,-450.0,0.00019673,2]
[360199815,1746616954785,-450.0,0.00019673,2]
[360199816,1746616954800,-450.0,0.00019673,2]
[360199817,1746616954812,-450.0,0.00019673,2]
[360199818,1746616954837,-450.0,0.00019673,2]
[360199819,1746616954848,-450.0,0.00019673,2]
[360199820,1746616954860,-450.0,0.00019673,2]
[360199821,1746616954872,-450.0,0.00019673,2]
[360199822,1746616954893,-450.0,0.00019673,2]
[360199823,1746616954925,-500.0,0.00019673,2]
[360199824,1746616954949,-450.0,0.0001958,2]
[360199825,1746616954961,-450.0,0.00019673,2]
[360199826,1746616954976,-450.0,0.00019673,2]
[360199827,1746616954987,-450.0,0.00019673,2]
[360199828,1746616955002,-450.0,0.00019673,2]
[360199829,1746616955018,-450.0,0.00019673,2]
[360199830,1746616955084,-450.0,0.00019673,2]
[360199831,1746616955113,-450.0,0.00019673,2]
[360199832,1746616955129,-450.0,0.00019663,2]
[360199833,1746616955140,-450.0,0.00019673,2]
[360199834,1746616955152,-450.0,0.00019673,2]
[360199835,1746616955164,-450.0,0.00019673,2]
[360199836,1746616955176,-450.0,0.00019673,2]
[360199837,1746616955187,-450.0,0.00019673,2]
[360199838,1746616955203,-450.0,0.00019673,2]
[360199839,1746616955216,-450.0,0.00019673,2]
[360199840,1746616955226,-450.0,0.00019673,2]
[360199841,1746616955244,-450.0,0.00019673,2]
[360199842,1746616955259,-478.13868149,0.00019673,2]
[360199843,1746616955275,-450.0,0.00019673,2]
[360199844,1746616955291,-450.0,0.00019673,2]
[360199845,1746616955301,-450.0,0.00019673,2]
[360199846,1746616955312,-450.0,0.00019673,2]
[360199847,1746616955322,-450.0,0.00019673,2]
[360199848,1746616955333,-450.0,0.00019673,2]
[360199849,1746616955344,-450.0,0.00019673,2]
[360199850,1746616955358,-450.0,0.00019673,2]
[360199851,1746616955383,-450.0,0.00019582,2]
[360199852,1746616955398,-450.0,0.00019673,2]
[360199853,1746616955409,-450.0,0.00019673,2]
[360199854,1746616955444,-450.0,0.00019673,2]
[360199855,1746616955536,-2000.0,0.00019673,2]
[360199856,1746616955554,-450.0,0.00019673,2]
[360199857,1746616955566,-450.0,0.00019673,2]
[360199858,1746616955577,-450.0,0.00019673,2]
[360199859,1746616955593,-450.0,0.00019673,2]
[360199860,1746616955604,-450.0,0.00019673,2]
[360199861,1746616955615,-450.0,0.00019673,2]
[360199862,1746616955627,-450.0,0.00019673,2]
[360199863,1746616955638,-450.0,0.00019673,2]
[360199864,1746616955649,-450.0,0.00019673,2]
[360199865,1746616955660,-450.0,0.00019673,2]
[360199866,1746616955670,-450.0,0.00019673,2]
[360199867,1746616955689,-450.0,0.00019673,2]
[360199868,1746616955705,-450.0,0.00019673,2]
[360199869,1746616955716,-450.0,0.00019673,2]
[360199870,1746616955727,-450.0,0.00019673,2]
[360199871,1746616955738,-450.0,0.00019673,2]
[360199872,1746616955748,-450.0,0.00019673,2]
[360199873,1746616955766,-450.0,0.00019673,2]
[360199874,1746616955777,-450.0,0.00019673,2]
[360199875,1746616955789,-450.0,0.00019673,2]
[360199876,1746616955800,-450.0,0.00019673,2]
[360199877,1746616955819,-450.0,0.00019673,2]
[360199878,1746616955830,-450.0,0.00019673,2]
[360199879,1746616955841,-450.0,0.00019673,2]
[360199880,1746616955856,-450.0,0.00019673,2]
[360199881,1746616955871,-450.0,0.00019673,2]
[360199882,1746616955883,-450.0,0.00019673,2]
[360199883,1746616955897,-450.0,0.00019673,2]
[360199884,1746616955909,-450.0,0.00019673,2]
[360199885,1746616955920,-450.0,0.00019673,2]
[360199886,1746616955935,-470.0,0.00019673,2]
[360199887,1746616956016,-450.0,0.00019673,2]
[360199888,1746616956048,-450.0,0.00019673,2]
[360199889,1746616956064,-450.0,0.00019673,2]
[360199890,1746616956076,-450.0,0.00019673,2]
[360199891,1746616956087,-248.85891665,0.00019673,2]
[360199892,1746616956128,-450.0,0.00019673,2]
[360199893,1746616956196,-450.0,0.00019673,2]
[360199894,1746616956211,-450.0,0.00019673,2]
[360199895,1746616956226,-450.0,0.00019673,2]
[360199896,1746616956237,-450.0,0.00019673,2]
[360199897,1746616956252,-450.0,0.00019673,2]
[360199898,1746616956263,-450.0,0.00019673,2]
[360199899,1746616956274,-450.0,0.00019673,2]
[360199900,1746616956299,-450.0,0.00019673,2]
[360199901,1746616956315,-450.0,0.00019596,2]
[360199902,1746616956324,-12.95685112,0.00019673,2]
[360199903,1746616956339,-490.4396838,0.00019673,2]
[360199904,1746616956350,-450.0,0.00019673,2]
[360199905,1746616956366,-470.0,0.00019673,2]
[360199906,1746616956377,-450.0,0.00019673,2]
[360199907,1746616956393,-450.0,0.00019673,2]
[360199908,1746616956407,-450.0,0.00019673,2]
[360199909,1746616956442,-470.0,0.00019673,2]
[360199910,1746616956458,-450.0,0.00019673,2]
[360199911,1746616956482,-450.0,0.00019673,2]
[360199912,1746616956499,-450.0,0.00019673,2]
[360199913,1746616956522,-450.0,0.00019673,2]
[360199914,1746616956534,-450.0,0.00019673,2]
[360199915,1746616956579,-450.0,0.00019673,2]
[360199916,1746616956640,-478.19333598,0.00019673,2]
[360199917,1746616956671,-450.0,0.00019673,2]
[360199918,1746616956686,-477.02561307,0.00019673,2]
[360199919,1746616956698,-450.0,0.00019673,2]
[360199920,1746616956709,-450.0,0.00019673,2]
[360199921,1746616956720,-450.0,0.00019673,2]
[360199922,1746616956736,-450.0,0.00019513,2]
[360199923,1746616956752,-450.0,0.00019673,2]
[360199924,1746616957004,-450.0,0.00019673,2]
[360199925,1746616957020,-450.0,0.00019673,2]
[360199926,1746616957032,-470.0,0.00019673,2]
[360199927,1746616957043,-450.0,0.00019673,2]
[360199928,1746616957055,-450.0,0.00019673,2]
[360199929,1746616957073,-450.0,0.00019673,2]
[360199930,1746616957094,-450.0,0.00019586,2]
[360199931,1746616957107,-231.03785791,0.00019673,2]
[360199932,1746616957119,-450.0,0.00019673,2]
[360199933,1746616957134,-450.0,0.00019673,2]
[360199934,1746616957146,-450.0,0.00019673,2]
[360199935,1746616957161,-450.0,0.00019673,2]
[360199936,1746616957173,-450.0,0.00019673,2]
[360199937,1746616957185,-450.0,0.00019673,2]
[360199938,1746616957204,-450.0,0.00019673,2]
[360199939,1746616957215,-450.0,0.00019673,2]
[360199940,1746616957231,-450.0,0.00019673,2]
[360199941,1746616957247,-450.0,0.00019673,2]